[Event "Early-Titled-Tuesday-Blitz-March-26-2024"]
[Site "Chess.com"]
[Date "2024.03.26"]
[Round "3"]
[White "Firouzja2003"]
[Black "reevecanada"]
[Result "1-0"]
[WhiteElo "3075"]
[BlackElo "2672"]
[TimeControl "180+1"]
[EndTime "8:29:08 PDT"]
[Termination "Firouzja2003 won by resignation"]

1. e4 {[%clk 0:03:00.9]} 1... e6 {[%clk 0:02:56.3]} 2. d4 {[%clk 0:03:00.5]}
2... d5 {[%clk 0:02:56.3]} 3. Nc3 {[%clk 0:03:00.3]} 3... c6 {[%clk 0:02:50]} 4.
Nf3 {[%clk 0:02:59]} 4... Nf6 {[%clk 0:02:49.2]} 5. Bd3 {[%clk 0:02:58.7]} 5...
Be7 {[%clk 0:02:49]} 6. h4 {[%clk 0:02:54]} 6... h6 {[%clk 0:02:48.4]} 7. Qe2
{[%clk 0:02:52.7]} 7... dxe4 {[%clk 0:02:48.1]} 8. Nxe4 {[%clk 0:02:52.7]} 8...
Nxe4 {[%clk 0:02:47.2]} 9. Bxe4 {[%clk 0:02:52.9]} 9... Nd7 {[%clk 0:02:46.9]}
10. Bd2 {[%clk 0:02:51.5]} 10... c5 {[%clk 0:02:39]} 11. O-O-O {[%clk
0:02:46.9]} 11... cxd4 {[%clk 0:02:38.3]} 12. Nxd4 {[%clk 0:02:46.8]} 12... Nc5
{[%clk 0:02:31.4]} 13. Bc3 {[%clk 0:02:45.4]} 13... Qb6 {[%clk 0:02:28.5]} 14.
Nf3 {[%clk 0:02:31.8]} 14... O-O {[%clk 0:02:23.7]} 15. Ne5 {[%clk 0:02:26.1]}
15... Nxe4 {[%clk 0:02:00.5]} 16. Qxe4 {[%clk 0:02:25.6]} 16... Qxf2 {[%clk
0:02:00.8]} 17. Rdf1 {[%clk 0:02:13.6]} 17... Qc5 {[%clk 0:01:39.7]} 18. Qg4
{[%clk 0:01:39.4]} 18... f6 {[%clk 0:01:36.9]} 19. Ng6 {[%clk 0:01:35.3]} 19...
e5 {[%clk 0:01:28.8]} 20. Qh5 {[%clk 0:01:29]} 20... Rd8 {[%clk 0:01:23.9]} 21.
g4 {[%clk 0:01:07]} 21... Be6 {[%clk 0:01:09.6]} 22. g5 {[%clk 0:01:03.6]} 22...
fxg5 {[%clk 0:01:09.7]} 23. hxg5 {[%clk 0:01:03.7]} 23... Qe3+ {[%clk
0:01:01.4]} 24. Kb1 {[%clk 0:01:03.3]} 24... Bxg5 {[%clk 0:01:01.6]} 25. Re1
{[%clk 0:00:46.5]} 25... Qg3 {[%clk 0:00:56.2]} 26. Nxe5 {[%clk 0:00:39.4]}
26... Rf8 {[%clk 0:00:47]} 27. Rhg1 {[%clk 0:00:25.4]} 27... Qh4 {[%clk
0:00:30.4]} 28. Qxh4 {[%clk 0:00:12.2]} 28... Bxh4 {[%clk 0:00:31.3]} 29. Nd3
{[%clk 0:00:12.7]} 29... Bxe1 {[%clk 0:00:26.1]} 30. Rxg7+ {[%clk 0:00:12.7]}
30... Kh8 {[%clk 0:00:26.6]} 31. Nxe1 {[%clk 0:00:13.6]} 31... Rae8 {[%clk
0:00:17.6]} 32. Rxb7+ {[%clk 0:00:12.5]} 32... Kg8 {[%clk 0:00:17.4]} 33. Rg7+
{[%clk 0:00:13.1]} 33... Kh8 {[%clk 0:00:17.9]} 34. Rxa7+ {[%clk 0:00:13.6]}
34... Kg8 {[%clk 0:00:18]} 35. Rg7+ {[%clk 0:00:14.3]} 35... Kh8 {[%clk
0:00:18.5]} 36. b3 {[%clk 0:00:13.3]} 36... Bf5 {[%clk 0:00:17.2]} 37. Ng2
{[%clk 0:00:09.7]} 37... Rc8 {[%clk 0:00:15.3]} 38. Rc7+ {[%clk 0:00:07.9]}
38... Kg8 {[%clk 0:00:14.8]} 39. Rg7+ {[%clk 0:00:08.2]} 39... Kh8 {[%clk
0:00:14.9]} 40. Bd4 {[%clk 0:00:07.8]} 40... Bxc2+ {[%clk 0:00:13.7]} 41. Kb2
{[%clk 0:00:07.2]} 41... Bf5 {[%clk 0:00:12.9]} 42. Rc7+ {[%clk 0:00:07.3]}
42... Kg8 {[%clk 0:00:12.6]} 43. Rg7+ {[%clk 0:00:07.9]} 43... Kh8 {[%clk
0:00:12.9]} 44. Nh4 {[%clk 0:00:08.8]} 44... Rc2+ {[%clk 0:00:12.1]} 45. Ka3
{[%clk 0:00:09.3]} 45... Ra8+ {[%clk 0:00:11.5]} 46. Ra7+ {[%clk 0:00:09.2]}
46... Kg8 {[%clk 0:00:09.1]} 47. Rxa8+ {[%clk 0:00:09.7]} 47... Kf7 {[%clk
0:00:09.7]} 48. Nxf5 {[%clk 0:00:09.4]} 48... h5 {[%clk 0:00:10.5]} 49. Ra7+
{[%clk 0:00:09.5]} 49... Kg6 {[%clk 0:00:11.4]} 50. Ne3 {[%clk 0:00:06.3]} 50...
Re2 {[%clk 0:00:10.9]} 51. Ra6+ {[%clk 0:00:06.6]} 51... Kg5 {[%clk 0:00:09.7]}
52. Ra5+ {[%clk 0:00:07.3]} 52... Kh4 {[%clk 0:00:09]} 53. Nf5+ {[%clk
0:00:07.1]} 53... Kg4 {[%clk 0:00:09.9]} 54. Nh6+ {[%clk 0:00:07.6]} 54... Kf4
{[%clk 0:00:10.2]} 55. Rxh5 {[%clk 0:00:07.4]} 55... Ke4 {[%clk 0:00:11]} 56.
Rh4+ {[%clk 0:00:07.7]} 56... Kd3 {[%clk 0:00:11.9]} 57. Bc5 {[%clk 0:00:08]}
57... Kc2 {[%clk 0:00:12.8]} 58. b4 {[%clk 0:00:07.6]} 58... Kb1 {[%clk
0:00:13.7]} 59. Ka4 {[%clk 0:00:08.1]} 59... Kxa2 {[%clk 0:00:12.8]} 60. Kb5
{[%clk 0:00:08.4]} 60... Re6 {[%clk 0:00:12.5]} 61. Nf5 {[%clk 0:00:08.9]} 61...
Kb3 {[%clk 0:00:13.4]} 62. Nd4+ {[%clk 0:00:09.2]} 62... Ka3 {[%clk 0:00:14.1]}
63. Rh3+ {[%clk 0:00:09.5]} 1-0

[Event "Early-Titled-Tuesday-Blitz-March-26-2024"]
[Site "Chess.com"]
[Date "2024.03.26"]
[Round "3"]
[White "Stanbad1"]
[Black "Irina_Baraeva"]
[Result "1-0"]
[WhiteElo "2655"]
[BlackElo "2441"]
[TimeControl "180+1"]
[EndTime "8:29:09 PDT"]
[Termination "Stanbad1 won by checkmate"]

1. d4 {[%clk 0:03:00.9]} 1... d5 {[%clk 0:02:59.6]} 2. c4 {[%clk 0:03:01.5]}
2... c6 {[%clk 0:02:59.7]} 3. Nf3 {[%clk 0:03:00.5]} 3... Nf6 {[%clk 0:02:59.5]}
4. Qc2 {[%clk 0:03:00.5]} 4... dxc4 {[%clk 0:02:59.4]} 5. Qxc4 {[%clk
0:03:01.4]} 5... Bg4 {[%clk 0:02:58.4]} 6. Bf4 {[%clk 0:02:43.5]} 6... Nbd7
{[%clk 0:02:52.5]} 7. e3 {[%clk 0:02:40.9]} 7... Bxf3 {[%clk 0:02:50.6]} 8. gxf3
{[%clk 0:02:41.8]} 8... e5 {[%clk 0:02:32.1]} 9. dxe5 {[%clk 0:02:34.8]} 9...
Qa5+ {[%clk 0:02:30.8]} 10. Nc3 {[%clk 0:02:10.5]} 10... Nxe5 {[%clk 0:02:30.3]}
11. Bxe5 {[%clk 0:02:07.5]} 11... Qxe5 {[%clk 0:02:30]} 12. f4 {[%clk 0:02:07]}
12... Qc5 {[%clk 0:02:25.9]} 13. Qxc5 {[%clk 0:02:05.9]} 13... Bxc5 {[%clk
0:02:25.8]} 14. Bc4 {[%clk 0:01:58.4]} 14... Ke7 {[%clk 0:02:23.1]} 15. Ke2
{[%clk 0:01:56.8]} 15... Rad8 {[%clk 0:02:22.5]} 16. Rad1 {[%clk 0:01:51.8]}
16... g6 {[%clk 0:02:18.9]} 17. Bb3 {[%clk 0:01:47.1]} 17... a5 {[%clk
0:02:12.6]} 18. a3 {[%clk 0:01:42.4]} 18... Rd6 {[%clk 0:01:56.7]} 19. Rc1
{[%clk 0:01:40.5]} 19... Ba7 {[%clk 0:01:54.1]} 20. Rhd1 {[%clk 0:01:36.7]}
20... Rhd8 {[%clk 0:01:53.2]} 21. Rxd6 {[%clk 0:01:36.8]} 21... Rxd6 {[%clk
0:01:53.2]} 22. h3 {[%clk 0:01:24]} 22... Rd7 {[%clk 0:01:24.6]} 23. Rc2 {[%clk
0:01:18.9]} 23... Rd8 {[%clk 0:01:09.8]} 24. Na4 {[%clk 0:01:06.2]} 24... Ne4
{[%clk 0:01:00]} 25. Ba2 {[%clk 0:00:43.9]} 25... h5 {[%clk 0:00:52.2]} 26. Bb1
{[%clk 0:00:36.6]} 26... Rd6 {[%clk 0:00:38.6]} 27. Nc3 {[%clk 0:00:25.8]} 27...
Nxc3+ {[%clk 0:00:37.2]} 28. Rxc3 {[%clk 0:00:26.7]} 28... Rd7 {[%clk
0:00:25.3]} 29. Be4 {[%clk 0:00:23.2]} 29... Ke6 {[%clk 0:00:21.1]} 30. Bf3
{[%clk 0:00:20.6]} 30... Ke7 {[%clk 0:00:21]} 31. Rb3 {[%clk 0:00:19.9]} 31...
Ke6 {[%clk 0:00:19]} 32. Rc3 {[%clk 0:00:20.1]} 32... Ke7 {[%clk 0:00:19.4]} 33.
Rc2 {[%clk 0:00:20.8]} 33... Ke6 {[%clk 0:00:19.8]} 34. Bg2 {[%clk 0:00:20.3]}
34... Ke7 {[%clk 0:00:20.4]} 35. b4 {[%clk 0:00:18.8]} 35... Rd6 {[%clk
0:00:21.3]} 36. bxa5 {[%clk 0:00:18.5]} 36... Bb8 {[%clk 0:00:21.6]} 37. Rb2
{[%clk 0:00:18.6]} 37... Rd7 {[%clk 0:00:22.2]} 38. a6 {[%clk 0:00:17.9]} 38...
b5 {[%clk 0:00:20.5]} 39. Bxc6 {[%clk 0:00:18.2]} 39... Ra7 {[%clk 0:00:20.7]}
40. Bxb5 {[%clk 0:00:18.6]} 40... Bd6 {[%clk 0:00:20.7]} 41. Bd3 {[%clk
0:00:19.1]} 41... Bxa3 {[%clk 0:00:21]} 42. Rb3 {[%clk 0:00:18.9]} 42... Bc5
{[%clk 0:00:20.7]} 43. Kf3 {[%clk 0:00:19.2]} 43... Bd6 {[%clk 0:00:20.9]} 44.
Bb5 {[%clk 0:00:18.7]} 44... Ke6 {[%clk 0:00:19.7]} 45. Rc3 {[%clk 0:00:18.3]}
45... Ke7 {[%clk 0:00:19.9]} 46. Rc2 {[%clk 0:00:18.6]} 46... Ke6 {[%clk
0:00:20.3]} 47. Ra2 {[%clk 0:00:19.1]} 47... Ke7 {[%clk 0:00:20.7]} 48. Bc6
{[%clk 0:00:19.5]} 48... Ke6 {[%clk 0:00:21]} 49. Bb7 {[%clk 0:00:20.1]} 49...
Ke7 {[%clk 0:00:21.5]} 50. Ke4 {[%clk 0:00:19.9]} 50... Ke6 {[%clk 0:00:22]} 51.
Rc2 {[%clk 0:00:20.5]} 51... Ke7 {[%clk 0:00:22.6]} 52. Kd5 {[%clk 0:00:21.1]}
52... Kd7 {[%clk 0:00:21.8]} 53. Rd2 {[%clk 0:00:20.4]} 53... Ke7 {[%clk
0:00:22.2]} 54. f5 {[%clk 0:00:19.8]} 54... Bb4 {[%clk 0:00:22.4]} 55. Rb2
{[%clk 0:00:19.5]} 55... Bd6 {[%clk 0:00:22.4]} 56. fxg6 {[%clk 0:00:19.5]}
56... fxg6 {[%clk 0:00:22.9]} 57. e4 {[%clk 0:00:20.2]} 57... Bf4 {[%clk
0:00:22.7]} 58. e5 {[%clk 0:00:20.1]} 58... Bc1 {[%clk 0:00:22]} 59. Rc2 {[%clk
0:00:20.7]} 59... Bf4 {[%clk 0:00:21.8]} 60. Rc7+ {[%clk 0:00:20.7]} 60... Kd8
{[%clk 0:00:21.7]} 61. Rh7 {[%clk 0:00:21]} 61... Bd2 {[%clk 0:00:20.5]} 62. e6
{[%clk 0:00:20.9]} 62... Bc3 {[%clk 0:00:20]} 63. Kc6 {[%clk 0:00:19.7]} 63...
Ke8 {[%clk 0:00:19.6]} 64. Kb6 {[%clk 0:00:18.6]} 64... Bd4+ {[%clk 0:00:20.3]}
65. Kc6 {[%clk 0:00:18.9]} 65... Bxf2 {[%clk 0:00:20.1]} 66. e7 {[%clk
0:00:19.1]} 66... Bh4 {[%clk 0:00:19.8]} 67. Kd6 {[%clk 0:00:18.9]} 67... Bf6
{[%clk 0:00:18]} 68. Bc6+ {[%clk 0:00:19]} 68... Rd7+ {[%clk 0:00:15.9]} 69.
Bxd7# {[%clk 0:00:19.6]} 1-0

[Event "Early-Titled-Tuesday-Blitz-March-26-2024"]
[Site "Chess.com"]
[Date "2024.03.26"]
[Round "3"]
[White "Siemba"]
[Black "profedechess93"]
[Result "0-1"]
[WhiteElo "2458"]
[BlackElo "2651"]
[TimeControl "180+1"]
[EndTime "8:29:11 PDT"]
[Termination "profedechess93 won by resignation"]

1. e4 {[%clk 0:03:00.9]} 1... e6 {[%clk 0:02:59.3]} 2. d4 {[%clk 0:03:00.8]}
2... d5 {[%clk 0:02:58.9]} 3. Nc3 {[%clk 0:02:55.3]} 3... Nf6 {[%clk 0:02:58.5]}
4. Bg5 {[%clk 0:02:51.1]} 4... Be7 {[%clk 0:02:58.3]} 5. e5 {[%clk 0:02:49.8]}
5... Nfd7 {[%clk 0:02:58.1]} 6. Bxe7 {[%clk 0:02:43.6]} 6... Qxe7 {[%clk
0:02:59]} 7. Qg4 {[%clk 0:02:44.1]} 7... f5 {[%clk 0:02:58]} 8. exf6 {[%clk
0:02:43.7]} 8... Nxf6 {[%clk 0:02:57.3]} 9. Qh4 {[%clk 0:02:44.1]} 9... c5
{[%clk 0:02:56.9]} 10. dxc5 {[%clk 0:02:24.6]} 10... Nc6 {[%clk 0:02:54.8]} 11.
Nf3 {[%clk 0:02:18.7]} 11... Qxc5 {[%clk 0:02:51.7]} 12. Bd3 {[%clk 0:01:39]}
12... O-O {[%clk 0:02:42.8]} 13. O-O-O {[%clk 0:01:25.6]} 13... b5 {[%clk
0:02:31.3]} 14. Bxb5 {[%clk 0:01:10.4]} 14... Rb8 {[%clk 0:02:25.8]} 15. Bxc6
{[%clk 0:01:02.1]} 15... Qxc6 {[%clk 0:02:26.7]} 16. Ne5 {[%clk 0:01:00.8]}
16... Qb6 {[%clk 0:01:57.3]} 17. Na4 {[%clk 0:00:54.3]} 17... Qc7 {[%clk
0:01:49.3]} 18. Rhe1 {[%clk 0:00:46.4]} 18... Ne4 {[%clk 0:01:20.1]} 19. f3
{[%clk 0:00:28.1]} 19... Nd6 {[%clk 0:01:18.1]} 20. Qd4 {[%clk 0:00:21.2]} 20...
Qb7 {[%clk 0:00:45.3]} 21. Nc5 {[%clk 0:00:14.3]} 21... Qc7 {[%clk 0:00:44.8]}
22. Ned3 {[%clk 0:00:13.7]} 22... Re8 {[%clk 0:00:37]} 23. Re5 {[%clk
0:00:12.3]} 23... Ba6 {[%clk 0:00:33.8]} 24. Rg5 {[%clk 0:00:11.5]} 24... Nf5
{[%clk 0:00:33.2]} 25. Rxf5 {[%clk 0:00:10.9]} 25... exf5 {[%clk 0:00:32.9]} 26.
Qxd5+ {[%clk 0:00:11.7]} 26... Kh8 {[%clk 0:00:32.5]} 27. Qxf5 {[%clk
0:00:11.9]} 27... Bxd3 {[%clk 0:00:30.6]} 28. Nxd3 {[%clk 0:00:11.8]} 28... Rbd8
{[%clk 0:00:28.3]} 29. Qf4 {[%clk 0:00:04.3]} 29... Qb7 {[%clk 0:00:25.8]} 30.
Qd2 {[%clk 0:00:03.5]} 30... Re7 {[%clk 0:00:24.2]} 31. Re1 {[%clk 0:00:03.6]}
31... Red7 {[%clk 0:00:23.8]} 32. Qc3 {[%clk 0:00:03.4]} 32... Rc7 {[%clk
0:00:21.1]} 33. Qe5 {[%clk 0:00:03.2]} 33... h6 {[%clk 0:00:19.7]} 34. Qf5
{[%clk 0:00:02.8]} 34... Rdc8 {[%clk 0:00:14.8]} 35. Re2 {[%clk 0:00:03.5]}
35... Qa6 {[%clk 0:00:13.5]} 36. Kd2 {[%clk 0:00:03]} 36... Qxa2 {[%clk
0:00:13.1]} 37. b3 {[%clk 0:00:02.8]} 37... Qa1 {[%clk 0:00:12.8]} 38. Ke3
{[%clk 0:00:03.1]} 38... Re7+ {[%clk 0:00:10.5]} 39. Kf2 {[%clk 0:00:03.8]}
39... Rxe2+ {[%clk 0:00:11]} 40. Kxe2 {[%clk 0:00:04.2]} 40... Rxc2+ {[%clk
0:00:11.4]} 41. Ke3 {[%clk 0:00:04.9]} 41... Qa3 {[%clk 0:00:09.7]} 42. Qf7
{[%clk 0:00:04.3]} 42... Qd6 {[%clk 0:00:08.6]} 43. Qe8+ {[%clk 0:00:04.4]}
43... Kh7 {[%clk 0:00:08.2]} 44. Qe4+ {[%clk 0:00:05.2]} 44... Qg6 {[%clk
0:00:08.2]} 45. Qxg6+ {[%clk 0:00:04.1]} 45... Kxg6 {[%clk 0:00:09.1]} 46. Nf4+
{[%clk 0:00:03.8]} 46... Kf7 {[%clk 0:00:09.4]} 47. Kd4 {[%clk 0:00:03.9]} 47...
g5 {[%clk 0:00:08.8]} 48. Nd3 {[%clk 0:00:02.3]} 48... Rxg2 {[%clk 0:00:09.1]}
49. h3 {[%clk 0:00:03]} 49... Rg3 {[%clk 0:00:08.9]} 50. Ne5+ {[%clk 0:00:03.8]}
50... Ke6 {[%clk 0:00:06.9]} 51. Nc6 {[%clk 0:00:04.1]} 51... Rxf3 {[%clk
0:00:05.2]} 52. Kc4 {[%clk 0:00:04.3]} 52... Rxh3 {[%clk 0:00:05.1]} 53. Nxa7
{[%clk 0:00:04.9]} 53... g4 {[%clk 0:00:06]} 54. Nc6 {[%clk 0:00:04.7]} 54... g3
{[%clk 0:00:06.6]} 55. b4 {[%clk 0:00:04.7]} 55... Kd7 {[%clk 0:00:06.7]} 56.
Ne5+ {[%clk 0:00:04.7]} 56... Kc7 {[%clk 0:00:07.2]} 57. Nf3 {[%clk 0:00:04.7]}
57... g2 {[%clk 0:00:06.6]} 58. Ng1 {[%clk 0:00:03.6]} 58... Rh1 {[%clk
0:00:07]} 0-1

[Event "Early-Titled-Tuesday-Blitz-March-26-2024"]
[Site "Chess.com"]
[Date "2024.03.26"]
[Round "3"]
[White "jakopogi"]
[Black "AryanTari"]
[Result "1-0"]
[WhiteElo "2798"]
[BlackElo "2999"]
[TimeControl "180+1"]
[EndTime "8:29:12 PDT"]
[Termination "jakopogi won by resignation"]

1. e4 {[%clk 0:02:56.9]} 1... e5 {[%clk 0:02:51.6]} 2. Nf3 {[%clk 0:02:56.7]}
2... Nc6 {[%clk 0:02:50.6]} 3. Bb5 {[%clk 0:02:56.3]} 3... Nge7 {[%clk
0:02:50.4]} 4. O-O {[%clk 0:02:55.4]} 4... Ng6 {[%clk 0:02:49]} 5. d4 {[%clk
0:02:55]} 5... exd4 {[%clk 0:02:48.1]} 6. Nxd4 {[%clk 0:02:52.8]} 6... Bc5
{[%clk 0:02:47.7]} 7. Be3 {[%clk 0:02:50.8]} 7... Bxd4 {[%clk 0:02:46.8]} 8.
Bxd4 {[%clk 0:02:50.4]} 8... Nxd4 {[%clk 0:02:46.6]} 9. Qxd4 {[%clk 0:02:50.3]}
9... Qg5 {[%clk 0:02:47]} 10. Qd5 {[%clk 0:02:42.6]} 10... h6 {[%clk 0:02:44.7]}
11. Qxg5 {[%clk 0:02:39.7]} 11... hxg5 {[%clk 0:02:44.7]} 12. Nc3 {[%clk
0:02:37.7]} 12... c6 {[%clk 0:02:44.3]} 13. Be2 {[%clk 0:02:37.4]} 13... d6
{[%clk 0:02:42.2]} 14. Rad1 {[%clk 0:02:37.1]} 14... Ke7 {[%clk 0:02:41.7]} 15.
Rd2 {[%clk 0:02:37.6]} 15... Be6 {[%clk 0:02:36.7]} 16. Rfd1 {[%clk 0:02:37.8]}
16... Rad8 {[%clk 0:02:31.6]} 17. f3 {[%clk 0:02:33.5]} 17... Ne5 {[%clk
0:02:21.6]} 18. Bf1 {[%clk 0:02:28.3]} 18... g6 {[%clk 0:02:20]} 19. b3 {[%clk
0:02:27.8]} 19... Rh6 {[%clk 0:01:45.2]} 20. Ne2 {[%clk 0:02:25]} 20... Rdh8
{[%clk 0:01:42.7]} 21. h3 {[%clk 0:02:17.8]} 21... Bxh3 {[%clk 0:01:41.4]} 22.
gxh3 {[%clk 0:02:15.8]} 22... Nxf3+ {[%clk 0:01:41.7]} 23. Kf2 {[%clk
0:02:16.2]} 23... Nxd2 {[%clk 0:01:42]} 24. Rxd2 {[%clk 0:02:17.1]} 24... Rh4
{[%clk 0:01:41.2]} 25. Bg2 {[%clk 0:02:15.6]} 25... g4 {[%clk 0:01:40.4]} 26.
hxg4 {[%clk 0:02:12.1]} 26... Rxg4 {[%clk 0:01:41.3]} 27. Bf3 {[%clk 0:02:12.4]}
27... Rh2+ {[%clk 0:01:37.5]} 28. Ke3 {[%clk 0:02:12.7]} 28... Rgh4 {[%clk
0:01:34.7]} 29. Rd1 {[%clk 0:02:05.1]} 29... a5 {[%clk 0:01:15.2]} 30. a4 {[%clk
0:02:04.9]} 30... Rh8 {[%clk 0:01:14.5]} 31. Rg1 {[%clk 0:02:01.1]} 31... Kf6
{[%clk 0:01:03.4]} 32. Bg4 {[%clk 0:01:58.2]} 32... Ke5 {[%clk 0:01:00.6]} 33.
Nd4 {[%clk 0:01:58.4]} 33... Kf6 {[%clk 0:00:55.1]} 34. Rf1+ {[%clk 0:01:57.7]}
34... Ke7 {[%clk 0:00:54.9]} 35. Ne2 {[%clk 0:01:29.8]} 35... Rh1 {[%clk
0:00:49.5]} 36. Rxh1 {[%clk 0:01:22.6]} 36... Rxh1 {[%clk 0:00:48.8]} 37. Bf3
{[%clk 0:01:23.5]} 37... Rh4 {[%clk 0:00:47.4]} 38. Nf4 {[%clk 0:01:22.5]} 38...
Kf6 {[%clk 0:00:46.6]} 39. Nd3 {[%clk 0:01:22.9]} 39... g5 {[%clk 0:00:46.1]}
40. Nf2 {[%clk 0:01:23.4]} 40... Ke7 {[%clk 0:00:42.2]} 41. Bg4 {[%clk
0:01:23.1]} 41... Rh8 {[%clk 0:00:36.9]} 42. Bf5 {[%clk 0:01:22.9]} 42... f6
{[%clk 0:00:36.2]} 43. Nd1 {[%clk 0:01:19.3]} 43... Rh2 {[%clk 0:00:31.8]} 44.
Kd3 {[%clk 0:01:19.6]} 44... Rh1 {[%clk 0:00:26.9]} 45. Ne3 {[%clk 0:01:19.8]}
45... Rh8 {[%clk 0:00:26.9]} 46. Nc4 {[%clk 0:01:18.1]} 46... Ra8 {[%clk
0:00:27.4]} 47. Nb6 {[%clk 0:01:18.6]} 47... Ra6 {[%clk 0:00:27.8]} 48. Nc8+
{[%clk 0:01:19]} 48... Kd8 {[%clk 0:00:28.4]} 49. Nxd6 {[%clk 0:01:19.7]} 49...
Ra7 {[%clk 0:00:24.7]} 50. Kd4 {[%clk 0:01:10.9]} 50... b6 {[%clk 0:00:23.6]}
51. c4 {[%clk 0:01:11.5]} 51... Re7 {[%clk 0:00:18.5]} 52. c5 {[%clk 0:01:09]}
52... bxc5+ {[%clk 0:00:17.6]} 53. Kxc5 {[%clk 0:01:09.2]} 53... Kc7 {[%clk
0:00:18.3]} 54. Nc4 {[%clk 0:01:08.8]} 54... g4 {[%clk 0:00:18.9]} 55. Bxg4
{[%clk 0:01:06.5]} 55... Rxe4 {[%clk 0:00:19.6]} 56. Bf3 {[%clk 0:01:07.2]}
56... Rf4 {[%clk 0:00:19.7]} 57. Bxc6 {[%clk 0:01:07.5]} 57... Rf1 {[%clk
0:00:09]} 58. Nxa5 {[%clk 0:01:04.5]} 58... f5 {[%clk 0:00:09.6]} 59. Nc4 {[%clk
0:01:00.3]} 59... f4 {[%clk 0:00:10.1]} 60. Ne5 {[%clk 0:00:49.4]} 60... Rc1+
{[%clk 0:00:07.6]} 61. Kd4 {[%clk 0:00:49.9]} 61... Kd6 {[%clk 0:00:06.4]} 62.
Bf3 {[%clk 0:00:48.3]} 62... Re1 {[%clk 0:00:05.2]} 63. Nc4+ {[%clk 0:00:48.1]}
63... Kc7 {[%clk 0:00:05.1]} 64. b4 {[%clk 0:00:46.8]} 64... Ra1 {[%clk
0:00:04.4]} 65. a5 {[%clk 0:00:46.9]} 65... Ra2 {[%clk 0:00:04]} 66. b5 {[%clk
0:00:46]} 66... Rf2 {[%clk 0:00:03.2]} 67. b6+ {[%clk 0:00:45.7]} 67... Kd7
{[%clk 0:00:03.1]} 68. Bd5 {[%clk 0:00:44.3]} 68... Rf1 {[%clk 0:00:02.2]} 69.
a6 {[%clk 0:00:43.6]} 69... Ra1 {[%clk 0:00:03.1]} 70. a7 {[%clk 0:00:43.5]} 1-0

[Event "Early-Titled-Tuesday-Blitz-March-26-2024"]
[Site "Chess.com"]
[Date "2024.03.26"]
[Round "3"]
[White "Aisen1011"]
[Black "BilicVladimir"]
[Result "0-1"]
[WhiteElo "2471"]
[BlackElo "2693"]
[TimeControl "180+1"]
[EndTime "8:29:13 PDT"]
[Termination "BilicVladimir won by checkmate"]

1. d4 {[%clk 0:02:59.8]} 1... d5 {[%clk 0:02:59.4]} 2. c4 {[%clk 0:03:00]} 2...
c6 {[%clk 0:02:59.9]} 3. Nc3 {[%clk 0:03:00]} 3... Nf6 {[%clk 0:03:00.5]} 4. Nf3
{[%clk 0:03:00.4]} 4... a6 {[%clk 0:03:00.9]} 5. a4 {[%clk 0:03:00]} 5... e6
{[%clk 0:03:00]} 6. g3 {[%clk 0:03:00.3]} 6... a5 {[%clk 0:03:00.1]} 7. Bg2
{[%clk 0:03:00.4]} 7... Na6 {[%clk 0:03:00.8]} 8. O-O {[%clk 0:03:00.5]} 8...
Be7 {[%clk 0:03:01.2]} 9. Nd2 {[%clk 0:02:59.8]} 9... O-O {[%clk 0:03:00.4]} 10.
e4 {[%clk 0:03:00.1]} 10... dxe4 {[%clk 0:02:59.8]} 11. Ndxe4 {[%clk 0:03:00.1]}
11... Nxe4 {[%clk 0:02:57.8]} 12. Nxe4 {[%clk 0:03:00.4]} 12... Nb4 {[%clk
0:02:58.4]} 13. Be3 {[%clk 0:02:56.1]} 13... b6 {[%clk 0:02:57.6]} 14. Rc1
{[%clk 0:02:54.8]} 14... Bb7 {[%clk 0:02:56.9]} 15. Qb3 {[%clk 0:02:52.7]} 15...
Qd7 {[%clk 0:02:38.9]} 16. Rfd1 {[%clk 0:02:46.3]} 16... h6 {[%clk 0:02:31.1]}
17. h4 {[%clk 0:01:29.2]} 17... Rfd8 {[%clk 0:02:19.7]} 18. d5 {[%clk
0:01:27.2]} 18... c5 {[%clk 0:02:11.4]} 19. dxe6 {[%clk 0:01:09.5]} 19... Qxe6
{[%clk 0:02:10.8]} 20. Nxc5 {[%clk 0:01:09.8]} 20... Bxc5 {[%clk 0:02:02.9]} 21.
Bxb7 {[%clk 0:01:09.6]} 21... Rxd1+ {[%clk 0:01:56]} 22. Rxd1 {[%clk 0:01:05.5]}
22... Re8 {[%clk 0:01:55.9]} 23. Bd5 {[%clk 0:00:59.6]} 23... Qf6 {[%clk
0:01:51]} 24. Qc3 {[%clk 0:00:30.1]} 24... Bxe3 {[%clk 0:01:39.6]} 25. fxe3
{[%clk 0:00:22.3]} 25... Qe7 {[%clk 0:01:17.2]} 26. e4 {[%clk 0:00:20.7]} 26...
Na6 {[%clk 0:01:06.4]} 27. Rf1 {[%clk 0:00:19.3]} 27... Rf8 {[%clk 0:01:06.1]}
28. e5 {[%clk 0:00:16]} 28... Nc5 {[%clk 0:01:04]} 29. Qe3 {[%clk 0:00:15.6]}
29... Kh8 {[%clk 0:00:42.5]} 30. b3 {[%clk 0:00:11.8]} 30... Nd7 {[%clk
0:00:32.2]} 31. Re1 {[%clk 0:00:09]} 31... Qc5 {[%clk 0:00:26.8]} 32. e6 {[%clk
0:00:05.8]} 32... fxe6 {[%clk 0:00:24.4]} 33. Bxe6 {[%clk 0:00:04.6]} 33...
Qxe3+ {[%clk 0:00:21.3]} 34. Rxe3 {[%clk 0:00:05.5]} 34... Nc5 {[%clk
0:00:21.6]} 35. Bd5 {[%clk 0:00:05.9]} 35... g5 {[%clk 0:00:21.9]} 36. hxg5
{[%clk 0:00:05.9]} 36... hxg5 {[%clk 0:00:22.8]} 37. Re5 {[%clk 0:00:06.5]}
37... g4 {[%clk 0:00:17.2]} 38. Rh5+ {[%clk 0:00:07.4]} 38... Kg7 {[%clk
0:00:17.5]} 39. Rg5+ {[%clk 0:00:08.3]} 39... Kf6 {[%clk 0:00:17.6]} 40. Rxg4
{[%clk 0:00:09.2]} 40... Ke5 {[%clk 0:00:18]} 41. Kg2 {[%clk 0:00:08.9]} 41...
Rh8 {[%clk 0:00:13.3]} 42. Rg6 {[%clk 0:00:09]} 42... Kd4 {[%clk 0:00:13.6]} 43.
Rxb6 {[%clk 0:00:09.1]} 43... Nd3 {[%clk 0:00:14.2]} 44. Rb5 {[%clk 0:00:08.5]}
44... Ke3 {[%clk 0:00:14.4]} 45. g4 {[%clk 0:00:06.6]} 45... Nf4+ {[%clk
0:00:13.1]} 46. Kg1 {[%clk 0:00:04.6]} 46... Ne2+ {[%clk 0:00:11.1]} 47. Kg2
{[%clk 0:00:04.9]} 47... Nf4+ {[%clk 0:00:11.2]} 48. Kf1 {[%clk 0:00:04.8]}
48... Rh2 {[%clk 0:00:09.3]} 49. Rb7 {[%clk 0:00:03.7]} 49... Rf2+ {[%clk
0:00:09.3]} 50. Kg1 {[%clk 0:00:01.8]} 50... Nh3+ {[%clk 0:00:07.5]} 51. Kh1
{[%clk 0:00:02.2]} 51... Rb2 {[%clk 0:00:06.9]} 52. Re7+ {[%clk 0:00:02]} 52...
Kf4 {[%clk 0:00:07]} 53. Rf7+ {[%clk 0:00:02.2]} 53... Kg3 {[%clk 0:00:07.3]}
54. Rf1 {[%clk 0:00:03.1]} 54... Rh2# {[%clk 0:00:06.1]} 0-1